[Event "African Games-chT 2019"]
[Site "Casablanca"]
[Date "2019.08.24"]
[Round "4.9"]
[White "Gohil, Mehul"]
[Black "Oatlhotse, Providence"]
[Result "0-1"]
[ECO "A45"]
[WhiteElo "2076"]
[BlackElo "2252"]
[Annotator "NA"]
[PlyCount "68"]
[EventDate "2019.08.24"]
[EventType "team-tourn"]
[EventCountry "MAR"]
[SourceTitle "playchess.com"]
[Source "ChessBase"]
[SourceQuality "1"]
[WhiteTeam "Kenya"]
[BlackTeam "Botswana"]
[WhiteTeamCountry "KEN"]
[BlackTeamCountry "BOT"]
[TimeControl "900+10"]

1. d4 {[%emt 0:00:00]} Nf6 {[%emt 0:00:00]} 2. Bg5 {[%emt 0:00:00]} e6 {[%emt 0:00:00]} 3. e4 {[%emt 0:00:01]} h6 {[%emt 0:00:00]} 4. Bxf6 {[%emt 0:00:02]} Qxf6 {[%emt 0:00:00]} 5. c3 {[%emt 0:00:02]} d5 {[%emt 0:00:00]} 6. Nd2 {[%emt 0:00:02]} c5 {[%emt 0:00:04]} 7. Ngf3 {[%emt 0:00:03]} cxd4 {[%emt 0:00:12]} 8. Nxd4 {[%emt 0:00:13]} Nc6 {[%emt 0:00:08]} 9. Bb5 {[%emt 0:00:08]} Bd7 {[%emt 0:00:03]} 10. O-O {[%emt 0:00:04]} dxe4 {[%emt 0:00:41]} 11. Nxe4 {[%emt 0:00:10]} Qd8 {[%emt 0:00:22]} 12. Nxc6 {[%emt 0:01:18]} bxc6 {[%emt 0:00:26]} 13. Bd3 {[%emt 0:00:50]} Be7 {[%emt 0:00:07]} 14. Qe2 {[%emt 0:00:08]} O-O {[%emt 0:00:07]} 15. Rad1 {[%emt 0:00:07]} Qc7 {[%emt 0:00:02]} 16. Bb1 {[%emt 0:00:34]} Rfd8 {[%emt 0:00:18]} 17. Qh5 {[%emt 0:03:10]} Rab8 {[%emt 0:00:16]} 18. b4 {[%emt 0:01:11]} Rb5 {[%emt 0:00:09]} 19. Qe2 {[%emt 0:00:19]} a5 {[%emt 0:00:33]} 20. a3 {[%emt 0:00:26]} Rbb8 {[%emt 0:00:20]} 21. Rfe1 {[%emt 0:00:38]} c5 {[%emt 0:00:41]} 22. Rd3 {[%emt 0:02:24]} axb4 {[%emt 0:00:31]} 23. axb4 {[%emt 0:00:10]} cxb4 {[%emt 0:00:02]} 24. Rg3 {[%emt 0:00:57]} f5 {[%emt 0:04:03]} 25. Qh5 {[%emt 0:01:15]} Qe5 {[%emt 0:03:31]} 26. f4 {[%emt 0:02:37]} Qxf4 {[%emt 0:00:29]} 27. Qg6 {[%emt 0:00:54]} Qe5 {[%emt 0:00:33]} 28. Rf1 {[%emt 0:00:03]} Be8 {[%emt 0:01:44]} 29. Qxh6 {[%emt 0:00:56]} Qxg3 {[%emt 0:02:50]} 30. Qxe6+ {[%emt 0:00:02]} Bf7 {[%emt 0:00:00]} 31. Qxe7 {[%emt 0:00:05]} Qe3+ {[%emt 0:00:31]} 32. Kh1 {[%emt 0:00:29]} Re8 {[%emt 0:00:01]} 33. Qd6 {[%emt 0:00:33]} bxc3 {[%emt 0:00:22]} 34. Bd3 {[%emt 0:00:24]} Rbd8 {[%emt 0:00:08]} 0-1

[Event "African Games-chT 2019"]
[Site "Casablanca"]
[Date "2019.08.24"]
[Round "4.10"]
[White "Khetho, Phemelo"]
[Black "Sang, Ricky"]
[Result "1-0"]
[ECO "B20"]
[WhiteElo "2178"]
[BlackElo "1971"]
[Annotator "NA"]
[PlyCount "113"]
[EventDate "2019.08.24"]
[EventType "team-tourn"]
[EventCountry "MAR"]
[SourceTitle "playchess.com"]
[Source "ChessBase"]
[SourceQuality "1"]
[WhiteTeam "Botswana"]
[BlackTeam "Kenya"]
[WhiteTeamCountry "BOT"]
[BlackTeamCountry "KEN"]
[TimeControl "900+10"]

1. e4 {[%emt 0:00:00]} c5 {[%emt 0:00:00]} 2. b3 {[%emt 0:00:01]} d6 {[%emt 0:00:04]} 3. Bb2 {[%emt 0:00:01]} Nf6 {[%emt 0:00:09]} 4. Nc3 {[%emt 0:00:03]} e6 {[%emt 0:00:06]} 5. f4 {[%emt 0:00:08]} Be7 {[%emt 0:00:07]} 6. Nf3 {[%emt 0:00:03]} a6 {[%emt 0:00:08]} 7. d4 {[%emt 0:00:34]} cxd4 {[%emt 0:00:07]} 8. Nxd4 {[%emt 0:00:03]} b5 {[%emt 0:00:44]} 9. Qf3 {[%emt 0:02:32]} Bb7 {[%emt 0:01:03]} 10. Bd3 {[%emt 0:00:18]} Qb6 {[%emt 0:02:14]} 11. Nce2 {[%emt 0:01:49]} Nbd7 {[%emt 0:00:26]} 12. g4 {[%emt 0:01:33]} Nc5 {[%emt 0:00:32]} 13. Ng3 {[%emt 0:00:18]} Qa5+ {[%emt 0:01:26]} 14. Ke2 {[%emt 0:00:37]} d5 {[%emt 0:01:22]} 15. e5 {[%emt 0:01:05]} Nfe4 {[%emt 0:00:13]} 16. Qe3 {[%emt 0:02:30]} O-O {[%emt 0:00:38]} 17. a3 {[%emt 0:00:56]} Qc7 {[%emt 0:00:49]} 18. b4 {[%emt 0:00:52]} Na4 {[%emt 0:00:41]} 19. Bxe4 {[%emt 0:02:30]} Nxb2 {[%emt 0:00:40]} 20. Bg2 {[%emt 0:00:27]} Qc4+ {[%emt 0:00:23]} 21. Kf2 {[%emt 0:00:02]} Bh4 {[%emt 0:00:30]} 22. Rhb1 {[%emt 0:00:30]} Na4 {[%emt 0:00:10]} 23. Bf1 {[%emt 0:00:05]} Qc7 {[%emt 0:00:24]} 24. Kg2 {[%emt 0:00:03]} Rac8 {[%emt 0:00:52]} 25. Bd3 {[%emt 0:00:20]} Nc3 {[%emt 0:01:12]} 26. Rf1 {[%emt 0:00:08]} a5 {[%emt 0:01:58]} 27. Nh5 {[%emt 0:00:41]} Be7 {[%emt 0:00:21]} 28. Qh3 {[%emt 0:00:19]} Ne4 {[%emt 0:00:17]} 29. Nxb5 {[%emt 0:00:25]} Qb6 {[%emt 0:00:20]} 30. bxa5 {[%emt 0:00:04]} Qxa5 {[%emt 0:00:13]} 31. Ng3 {[%emt 0:00:19]} Qd2+ {[%emt 0:00:16]} 32. Kh1 {[%emt 0:00:44]} Bc5 {[%emt 0:00:21]} 33. Ne2 {[%emt 0:00:11]} g6 {[%emt 0:00:30]} 34. Nbd4 {[%emt 0:00:04]} Nc3 {[%emt 0:00:21]} 35. Qf3 {[%emt 0:00:19]} Nxe2 {[%emt 0:00:10]} 36. Qxe2 {[%emt 0:00:05]} Qc3 {[%emt 0:00:12]} 37. Nf3 {[%emt 0:00:01]} d4 {[%emt 0:00:16]} 38. Kg1 {[%emt 0:00:09]} Ra8 {[%emt 0:00:13]} 39. a4 {[%emt 0:00:08]} Bd5 {[%emt 0:00:06]} 40. Ng5 {[%emt 0:00:05]} Rfb8 {[%emt 0:00:22]} 41. Ne4 {[%emt 0:00:02]} Bxe4 {[%emt 0:00:10]} 42. Qxe4 {[%emt 0:00:01]} Qa5 {[%emt 0:00:22]} 43. f5 {[%emt 0:00:04]} exf5 {[%emt 0:00:11]} 44. gxf5 {[%emt 0:00:01]} Bf8 {[%emt 0:00:06]} 45. e6 {[%emt 0:00:15]} fxe6 46. fxg6 {[%emt 0:00:25]} Qg5+ {[%emt 0:00:22]} 47. Kh1 {[%emt 0:00:02]} Qd5 {[%emt 0:00:21]} 48. gxh7+ {[%emt 0:00:03]} Kh8 {[%emt 0:00:01]} 49. Qxd5 {[%emt 0:00:26]} exd5 {[%emt 0:00:01]} 50. Rg1 {[%emt 0:00:03]} Bg7 {[%emt 0:00:07]} 51. Rg5 {[%emt 0:00:02]} Rd8 {[%emt 0:00:07]} 52. Rag1 {[%emt 0:00:06]} Ra7 {[%emt 0:00:01]} 53. h4 {[%emt 0:00:02]} Rd6 {[%emt 0:00:27]} 54. Rf5 {[%emt 0:00:27]} Rd8 {[%emt 0:00:30]} 55. h5 {[%emt 0:00:03]} Rad7 {[%emt 0:00:15]} 56. Rfg5 {[%emt 0:00:06]} Re7 57. h6 1-0

[Event "African Games-chT 2019"]
[Site "Casablanca"]
[Date "2019.08.24"]
[Round "4.11"]
[White "Ndirangu, Joyce Nyaruai"]
[Black "Francis, Onkemetse"]
[Result "0-1"]
[ECO "D00"]
[WhiteElo "1662"]
[BlackElo "1792"]
[Annotator "NA"]
[PlyCount "150"]
[EventDate "2019.08.24"]
[EventType "team-tourn"]
[EventCountry "MAR"]
[SourceTitle "playchess.com"]
[Source "ChessBase"]
[SourceQuality "1"]
[WhiteTeam "Kenya"]
[BlackTeam "Botswana"]
[WhiteTeamCountry "KEN"]
[BlackTeamCountry "BOT"]
[TimeControl "900+10"]

1. d4 {[%emt 0:00:00]} d5 {[%emt 0:00:00]} 2. Bf4 {[%emt 0:00:00]} Nf6 {[%emt 0:00:00]} 3. e3 {[%emt 0:00:00]} c6 {[%emt 0:00:00]} 4. Nd2 {[%emt 0:00:06]} Bf5 {[%emt 0:00:06]} 5. c3 {[%emt 0:00:06]} e6 {[%emt 0:00:05]} 6. Ngf3 {[%emt 0:00:03]} h6 {[%emt 0:00:04]} 7. Be2 {[%emt 0:00:03]} Nbd7 {[%emt 0:00:03]} 8. Ne5 {[%emt 0:00:38]} Be7 {[%emt 0:00:13]} 9. g4 {[%emt 0:03:01]} Bh7 {[%emt 0:00:13]} 10. g5 {[%emt 0:01:30]} hxg5 {[%emt 0:00:12]} 11. Bxg5 {[%emt 0:00:01]} Ne4 {[%emt 0:00:19]} 12. Bxe7 {[%emt 0:02:20]} Qxe7 {[%emt 0:00:04]} 13. Nxe4 {[%emt 0:00:13]} Bxe4 {[%emt 0:00:05]} 14. f3 {[%emt 0:00:02]} Nxe5 {[%emt 0:01:45]} 15. dxe5 {[%emt 0:00:11]} Bg6 {[%emt 0:00:03]} 16. Qd4 {[%emt 0:00:30]} Qh4+ {[%emt 0:00:42]} 17. Qxh4 {[%emt 0:00:08]} Rxh4 {[%emt 0:00:02]} 18. O-O-O {[%emt 0:00:03]} O-O-O {[%emt 0:00:17]} 19. Rdg1 {[%emt 0:00:06]} Rdh8 {[%emt 0:01:05]} 20. Rg2 {[%emt 0:00:43]} R4h5 {[%emt 0:00:28]} 21. Kd2 {[%emt 0:00:19]} Kd7 {[%emt 0:01:11]} 22. Ke1 {[%emt 0:02:02]} Rxe5 {[%emt 0:00:20]} 23. Kf2 {[%emt 0:00:05]} Reh5 {[%emt 0:00:24]} 24. Kg1 {[%emt 0:01:55]} Rh3 {[%emt 0:01:36]} 25. Kf2 {[%emt 0:00:27]} Ke7 {[%emt 0:00:17]} 26. Bf1 {[%emt 0:00:05]} R3h4 {[%emt 0:00:21]} 27. h3 {[%emt 0:00:24]} Kf6 {[%emt 0:01:02]} 28. Rg3 {[%emt 0:00:45]} e5 {[%emt 0:00:21]} 29. Bg2 {[%emt 0:00:19]} Ra4 {[%emt 0:01:24]} 30. Ra1 {[%emt 0:00:17]} Ra6 {[%emt 0:00:13]} 31. e4 {[%emt 0:00:15]} Rd8 {[%emt 0:01:54]} 32. Ke3 {[%emt 0:00:57]} Rb6 {[%emt 0:00:30]} 33. b3 {[%emt 0:00:07]} c5 {[%emt 0:00:31]} 34. exd5 {[%emt 0:00:16]} Rxd5 {[%emt 0:00:04]} 35. Bf1 {[%emt 0:00:03]} Rbd6 {[%emt 0:00:21]} 36. Bc4 {[%emt 0:00:51]} Rd2 {[%emt 0:00:23]} 37. Rgg1 {[%emt 0:00:15]} Rh2 {[%emt 0:00:23]} 38. Rgd1 {[%emt 0:00:52]} Rxd1 {[%emt 0:00:35]} 39. Rxd1 {[%emt 0:00:01]} Rxa2 {[%emt 0:00:39]} 40. Rd6+ {[%emt 0:00:06]} Ke7 {[%emt 0:00:10]} 41. Rd5 {[%emt 0:00:02]} b6 {[%emt 0:01:26]} 42. Rxe5+ {[%emt 0:00:03]} Kf6 {[%emt 0:00:02]} 43. Rd5 {[%emt 0:00:08]} Bf5 {[%emt 0:00:15]} 44. Rd6+ {[%emt 0:01:17]} Ke7 {[%emt 0:00:00]} 45. Rc6 {[%emt 0:00:04]} Bxh3 {[%emt 0:00:31]} 46. Rc7+ {[%emt 0:00:02]} Kd6 {[%emt 0:00:04]} 47. Rxf7 {[%emt 0:00:01]} a6 {[%emt 0:00:15]} 48. Rxg7 {[%emt 0:00:04]} b5 {[%emt 0:00:06]} 49. Bd3 {[%emt 0:00:09]} Ra3 {[%emt 0:00:10]} 50. Ra7 {[%emt 0:00:20]} Be6 {[%emt 0:00:08]} 51. f4 {[%emt 0:00:14]} Bxb3 {[%emt 0:00:07]} 52. f5 {[%emt 0:00:00]} Bd5 {[%emt 0:00:12]} 53. f6 {[%emt 0:00:01]} c4 {[%emt 0:00:13]} 54. Bg6 {[%emt 0:00:12]} Rxc3+ {[%emt 0:00:01]} 55. Kd2 {[%emt 0:00:03]} Ra3 {[%emt 0:00:03]} 56. Bf7 {[%emt 0:00:02]} Be4 {[%emt 0:00:16]} 57. Bg8 {[%emt 0:00:03]} c3+ {[%emt 0:00:07]} 58. Ke2 {[%emt 0:00:09]} Bg6 {[%emt 0:00:06]} 59. f7 {[%emt 0:00:06]} Bxf7 {[%emt 0:00:02]} 60. Bxf7 b4 {[%emt 0:00:11]} 61. Kd3 {[%emt 0:00:05]} Ra1 {[%emt 0:00:07]} 62. Bb3 {[%emt 0:00:02]} Ra3 {[%emt 0:01:06]} 63. Kc2 {[%emt 0:00:08]} a5 {[%emt 0:00:22]} 64. Rh7 {[%emt 0:01:04]} a4 {[%emt 0:00:18]} 65. Bg8 {[%emt 0:00:09]} Ra1 {[%emt 0:00:24]} 66. Rh5 {[%emt 0:00:05]} Rg1 {[%emt 0:00:08]} 67. Bh7 {[%emt 0:00:39]} Rg2+ {[%emt 0:00:03]} 68. Kd3 {[%emt 0:00:25]} c2 {[%emt 0:00:20]} 69. Rh1 {[%emt 0:00:02]} b3 {[%emt 0:00:06]} 70. Kc3 {[%emt 0:00:01]} Rh2 {[%emt 0:00:22]} 71. Rxh2 {[%emt 0:00:48]} c1=Q+ 72. Kb4 {[%emt 0:00:05]} Qf4+ {[%emt 0:00:07]} 73. Ka3 {[%emt 0:00:01]} Qxh2 {[%emt 0:00:03]} 74. Kxa4 {[%emt 0:00:00]} Qxh7 {[%emt 0:00:04]} 75. Kxb3 {[%emt 0:00:01]} Qc7 {[%emt 0:00:02]} 0-1

[Event "African Games-chT 2019"]
[Site "Casablanca"]
[Date "2019.08.24"]
[Round "4.12"]
[White "Gabatshwarwe Refilwe"]
[Black "Mongeli, Sasha"]
[Result "0-1"]
[ECO "D02"]
[WhiteElo "1649"]
[BlackElo "1527"]
[Annotator "NA"]
[PlyCount "170"]
[EventDate "2019.08.24"]
[EventType "team-tourn"]
[EventCountry "MAR"]
[SourceTitle "playchess.com"]
[Source "ChessBase"]
[SourceQuality "1"]
[WhiteTeam "Botswana"]
[BlackTeam "Kenya"]
[WhiteTeamCountry "BOT"]
[BlackTeamCountry "KEN"]
[TimeControl "900+10"]

1. d4 {[%emt 0:00:00]} Nf6 {[%emt 0:00:00]} 2. Nf3 {[%emt 0:00:00]} d5 {[%emt 0:00:02]} 3. Bf4 {[%emt 0:00:01]} Bf5 {[%emt 0:00:08]} 4. e3 {[%emt 0:00:06]} e6 {[%emt 0:00:07]} 5. c3 {[%emt 0:00:07]} c6 {[%emt 0:00:14]} 6. Nbd2 {[%emt 0:00:04]} Nbd7 {[%emt 0:00:12]} 7. h3 {[%emt 0:00:06]} h6 {[%emt 0:00:12]} 8. Be2 {[%emt 0:00:13]} Be7 {[%emt 0:00:07]} 9. Ne5 {[%emt 0:00:20]} Ne4 {[%emt 0:00:40]} 10. Ndf3 {[%emt 0:01:57]} O-O {[%emt 0:01:26]} 11. g4 {[%emt 0:00:33]} Bh7 {[%emt 0:01:07]} 12. Nxd7 {[%emt 0:01:19]} Qxd7 {[%emt 0:00:14]} 13. Ne5 {[%emt 0:00:05]} Qd8 {[%emt 0:00:15]} 14. Qb3 {[%emt 0:00:33]} Nd6 {[%emt 0:01:10]} 15. Bd3 {[%emt 0:01:14]} Bxd3 {[%emt 0:00:41]} 16. Nxd3 {[%emt 0:00:03]} Qb6 {[%emt 0:01:17]} 17. h4 {[%emt 0:00:56]} Nc4 {[%emt 0:02:40]} 18. g5 {[%emt 0:03:22]} h5 {[%emt 0:01:24]} 19. Rg1 {[%emt 0:00:47]} g6 {[%emt 0:00:32]} 20. Rb1 {[%emt 0:00:39]} Qxb3 {[%emt 0:00:36]} 21. axb3 {[%emt 0:00:03]} Na5 {[%emt 0:00:12]} 22. b4 {[%emt 0:00:27]} Nc4 {[%emt 0:00:10]} 23. Ne5 {[%emt 0:00:26]} Nxe5 {[%emt 0:00:06]} 24. Bxe5 {[%emt 0:00:01]} a5 {[%emt 0:00:18]} 25. bxa5 {[%emt 0:00:27]} Rxa5 {[%emt 0:00:02]} 26. Ke2 {[%emt 0:00:41]} Ra2 {[%emt 0:00:20]} 27. Kd3 {[%emt 0:00:18]} Rfa8 {[%emt 0:00:18]} 28. Bg3 {[%emt 0:00:55]} Kf8 {[%emt 0:01:11]} 29. b4 {[%emt 0:00:21]} b5 {[%emt 0:00:09]} 30. Rgc1 {[%emt 0:00:43]} R8a4 {[%emt 0:00:20]} 31. e4 {[%emt 0:00:49]} R2a3 {[%emt 0:00:22]} 32. exd5 {[%emt 0:01:07]} cxd5 {[%emt 0:00:27]} 33. Kd2 {[%emt 0:00:15]} Ke8 {[%emt 0:00:36]} 34. Rc2 {[%emt 0:00:15]} Kd7 {[%emt 0:00:19]} 35. Rd1 {[%emt 0:00:39]} Bd6 {[%emt 0:00:29]} 36. Bxd6 {[%emt 0:00:01]} Kxd6 {[%emt 0:00:02]} 37. Re1 {[%emt 0:00:02]} Ra2 {[%emt 0:00:09]} 38. Rec1 {[%emt 0:00:46]} Rxc2+ {[%emt 0:00:49]} 39. Rxc2 {[%emt 0:00:01]} Ra1 {[%emt 0:00:02]} 40. Ke2 {[%emt 0:00:34]} Kc6 {[%emt 0:00:15]} 41. Kf3 {[%emt 0:00:01]} Rh1 {[%emt 0:00:23]} 42. Kg3 {[%emt 0:00:02]} Re1 {[%emt 0:00:08]} 43. Ra2 {[%emt 0:00:12]} Rg1+ {[%emt 0:00:20]} 44. Kf4 {[%emt 0:00:07]} Rg4+ {[%emt 0:00:12]} 45. Ke5 {[%emt 0:00:12]} Rxh4 {[%emt 0:00:13]} 46. f3 {[%emt 0:00:27]} Rh3 {[%emt 0:00:19]} 47. Kf4 {[%emt 0:00:14]} Rh4+ {[%emt 0:00:10]} 48. Kg3 {[%emt 0:00:06]} Rh1 {[%emt 0:00:05]} 49. Ra7 {[%emt 0:00:05]} Rg1+ {[%emt 0:00:05]} 50. Kf4 {[%emt 0:00:09]} Rc1 {[%emt 0:00:20]} 51. Rxf7 {[%emt 0:00:04]} Rxc3 {[%emt 0:00:19]} 52. Rf6 {[%emt 0:00:05]} Kd6 {[%emt 0:00:08]} 53. Rxg6 {[%emt 0:00:01]} Rc4 {[%emt 0:00:02]} 54. Ke3 {[%emt 0:00:29]} Rc3+ {[%emt 0:00:02]} 55. Kf4 {[%emt 0:00:03]} Rc4 {[%emt 0:00:03]} 56. Ke3 {[%emt 0:00:14]} Rxb4 {[%emt 0:00:12]} 57. Rh6 {[%emt 0:00:02]} Rb3+ {[%emt 0:00:01]} 58. Ke2 {[%emt 0:00:06]} Rb2+ {[%emt 0:00:06]} 59. Kd3 {[%emt 0:00:05]} Rb3+ {[%emt 0:00:11]} 60. Ke2 {[%emt 0:00:08]} Rb2+ {[%emt 0:00:05]} 61. Ke3 {[%emt 0:00:09]} Rb3+ {[%emt 0:00:05]} 62. Ke2 {[%emt 0:00:16]} Rb2+ {[%emt 0:00:14]} 63. Ke1 {[%emt 0:00:28]} Rh2 {[%emt 0:00:22]} 64. g6 {[%emt 0:00:05]} b4 {[%emt 0:00:08]} 65. Kf1 {[%emt 0:00:23]} b3 {[%emt 0:00:45]} 66. g7 {[%emt 0:00:09]} b2 {[%emt 0:00:07]} 67. Rxe6+ {[%emt 0:00:05]} Kxe6 {[%emt 0:00:23]} 68. g8=Q+ {[%emt 0:00:01]} Kd6 {[%emt 0:00:05]} 69. Qb8+ {[%emt 0:00:04]} Kd7 {[%emt 0:00:08]} 70. Qb5+ {[%emt 0:00:17]} Kd6 {[%emt 0:00:07]} 71. Qb6+ {[%emt 0:00:07]} Kd7 {[%emt 0:00:05]} 72. Qb7+ {[%emt 0:00:12]} Kd6 {[%emt 0:00:08]} 73. Qb8+ {[%emt 0:00:04]} Kd7 {[%emt 0:00:06]} 74. Qxh2 {[%emt 0:00:16]} b1=Q+ {[%emt 0:00:04]} 75. Kg2 {[%emt 0:00:01]} Qc2+ {[%emt 0:00:12]} 76. Kg3 {[%emt 0:00:03]} Qc7+ {[%emt 0:00:24]} 77. Kh3 {[%emt 0:00:06]} Qxh2+ {[%emt 0:00:23]} 78. Kxh2 {[%emt 0:00:01]} Ke6 {[%emt 0:00:02]} 79. Kg3 {[%emt 0:00:14]} Kf5 {[%emt 0:00:02]} 80. f4 {[%emt 0:00:50]} h4+ {[%emt 0:00:02]} 81. Kxh4 {[%emt 0:00:01]} Kxf4 {[%emt 0:00:01]} 82. Kh3 {[%emt 0:00:01]} Ke4 {[%emt 0:00:04]} 83. Kg3 {[%emt 0:00:02]} Kxd4 {[%emt 0:00:02]} 84. Kf2 {[%emt 0:00:06]} Kc3 {[%emt 0:00:02]} 85. Ke2 {[%emt 0:00:06]} d4 {[%emt 0:00:14]} 0-1

[Event "African Games-chT 2019"]
[Site "Casablanca"]
[Date "2019.08.24"]
[Round "4.13"]
[White "Bellahcene, Bilel"]
[Black "Adu, Oladapo"]
[Result "1-0"]
[ECO "A00"]
[WhiteElo "2550"]
[BlackElo "2273"]
[Annotator "ChessBase"]
[PlyCount "61"]
[EventDate "2019.08.24"]
[EventType "team-tourn"]
[EventCountry "MAR"]
[SourceTitle "playchess.com"]
[Source "ChessBase"]
[SourceQuality "1"]
[WhiteTeam "Algeria"]
[BlackTeam "Nigeria"]
[WhiteTeamCountry "ALG"]
[BlackTeamCountry "NGR"]
[TimeControl "900+10"]

1. Nh3 {[%emt 0:00:00]} d5 {[%emt 0:00:08]} 2. g3 {[%emt 0:00:00]} Nf6 {[%emt 0:00:06]} 3. d4 {[%emt 0:00:00]} c5 {[%emt 0:00:24]} 4. c3 {[%emt 0:00:19]} Nc6 {[%emt 0:00:11]} 5. Bg2 {[%emt 0:00:04]} cxd4 {[%emt 0:00:06]} 6. cxd4 {[%emt 0:00:01]} Qb6 {[%emt 0:00:05]} 7. e3 {[%emt 0:00:30]} Bf5 {[%emt 0:00:07]} 8. O-O {[%emt 0:00:12]} e6 {[%emt 0:00:01]} 9. Nc3 {[%emt 0:00:03]} Be7 {[%emt 0:00:33]} 10. Nf4 {[%emt 0:00:04]} Rd8 {[%emt 0:00:12]} 11. h3 {[%emt 0:00:02]} h6 {[%emt 0:00:01]} 12. Nd3 {[%emt 0:00:21]} O-O {[%emt 0:00:04]} 13. g4 {[%emt 0:00:08]} Bg6 {[%emt 0:00:16]} 14. Nf4 {[%emt 0:00:08]} Bh7 {[%emt 0:00:15]} 15. b3 Ne4 {[%emt 0:00:10]} 16. Na4 {[%emt 0:00:25]} Qc7 {[%emt 0:00:22]} 17. Bb2 {[%emt 0:00:08]} b5 {[%emt 0:00:05]} 18. Nc5 {[%emt 0:00:11]} e5 {[%emt 0:01:32]} 19. Nxd5 {[%emt 0:00:18]} Rxd5 {[%emt 0:00:12]} 20. Nxe4 {[%emt 0:00:02]} Rfd8 {[%emt 0:00:09]} 21. Nc3 {[%emt 0:00:15]} Rc5 {[%emt 0:00:05]} 22. dxc5 {[%emt 0:00:14]} Rxd1 {[%emt 0:00:02]} 23. Rfxd1 {[%emt 0:00:01]} Nb4 {[%emt 0:00:17]} 24. Nd5 {[%emt 0:00:23]} Nxd5 {[%emt 0:00:38]} 25. Rxd5 {[%emt 0:00:02]} f6 {[%emt 0:01:11]} 26. c6 {[%emt 0:00:04]} Kf8 {[%emt 0:00:35]} 27. Rd7 {[%emt 0:00:06]} Qc8 {[%emt 0:00:14]} 28. Rc1 {[%emt 0:00:04]} a5 {[%emt 0:00:18]} 29. Ra7 {[%emt 0:00:11]} e4 {[%emt 0:00:03]} 30. c7 {[%emt 0:00:07]} Bd6 {[%emt 0:00:52]} 31. Ra8 {[%emt 0:00:01]} 1-0

[Event "African Games-chT 2019"]
[Site "Casablanca"]
[Date "2019.08.24"]
[Round "4.14"]
[White "Osunfuyi, Abimbola"]
[Black "Arab, Adlane"]
[Result "0-1"]
[ECO "A46"]
[WhiteElo "2235"]
[BlackElo "2485"]
[Annotator "ChessBase"]
[PlyCount "138"]
[EventDate "2019.08.24"]
[EventType "team-tourn"]
[EventCountry "MAR"]
[SourceTitle "playchess.com"]
[Source "ChessBase"]
[SourceQuality "1"]
[WhiteTeam "Nigeria"]
[BlackTeam "Algeria"]
[WhiteTeamCountry "NGR"]
[BlackTeamCountry "ALG"]
[TimeControl "900+10"]

1. d4 {[%emt 0:00:00]} Nf6 {[%emt 0:00:00]} 2. Nf3 {[%emt 0:00:00]} e6 {[%emt 0:00:00]} 3. g3 {[%emt 0:00:09]} b5 {[%emt 0:00:00]} 4. Bg2 {[%emt 0:00:36]} Bb7 {[%emt 0:00:00]} 5. O-O {[%emt 0:00:10]} c5 {[%emt 0:00:00]} 6. c4 {[%emt 0:01:23]} bxc4 {[%emt 0:00:08]} 7. Qa4 {[%emt 0:00:26]} Nc6 {[%emt 0:01:44]} 8. dxc5 {[%emt 0:00:36]} Bxc5 {[%emt 0:00:08]} 9. Qxc4 {[%emt 0:00:04]} Be7 {[%emt 0:00:04]} 10. Nc3 {[%emt 0:00:22]} d5 {[%emt 0:00:15]} 11. Qb5 {[%emt 0:00:40]} Qd7 {[%emt 0:00:08]} 12. Rd1 {[%emt 0:00:47]} a6 {[%emt 0:00:56]} 13. Qa4 {[%emt 0:00:09]} Nb4 {[%emt 0:00:19]} 14. a3 {[%emt 0:03:03]} Qxa4 {[%emt 0:01:02]} 15. Nxa4 {[%emt 0:00:02]} Nc6 {[%emt 0:00:07]} 16. Bf4 {[%emt 0:00:45]} Nd7 {[%emt 0:00:13]} 17. Rac1 {[%emt 0:00:19]} Rc8 {[%emt 0:01:06]} 18. Be3 {[%emt 0:01:09]} O-O {[%emt 0:00:23]} 19. Nb6 {[%emt 0:00:21]} Nxb6 {[%emt 0:00:05]} 20. Bxb6 {[%emt 0:00:02]} Bf6 {[%emt 0:00:28]} 21. Rc2 {[%emt 0:00:28]} Ne5 {[%emt 0:00:36]} 22. Rxc8 {[%emt 0:00:59]} Rxc8 {[%emt 0:00:02]} 23. Nxe5 {[%emt 0:00:06]} Bxe5 {[%emt 0:00:01]} 24. Bd4 {[%emt 0:00:13]} Bd6 {[%emt 0:00:48]} 25. f4 {[%emt 0:00:05]} f6 {[%emt 0:00:17]} 26. e3 {[%emt 0:00:50]} Rc2 {[%emt 0:00:15]} 27. Bf1 {[%emt 0:01:22]} Kf7 {[%emt 0:00:07]} 28. Bc3 {[%emt 0:00:24]} Bc5 {[%emt 0:00:13]} 29. Re1 {[%emt 0:00:32]} Rc1 {[%emt 0:01:21]} 30. Kf2 {[%emt 0:00:34]} Rc2+ {[%emt 0:00:18]} 31. Kg1 {[%emt 0:00:07]} Rc1 {[%emt 0:00:05]} 32. Kf2 {[%emt 0:00:07]} Rxe1 {[%emt 0:00:01]} 33. Bxe1 {[%emt 0:00:02]} e5 {[%emt 0:00:09]} 34. Bc3 {[%emt 0:00:15]} Ke6 {[%emt 0:00:08]} 35. Bh3+ {[%emt 0:00:03]} Kd6 {[%emt 0:00:06]} 36. fxe5+ {[%emt 0:00:15]} fxe5 {[%emt 0:00:01]} 37. Bf5 {[%emt 0:00:13]} g6 {[%emt 0:00:12]} 38. Bd3 {[%emt 0:00:12]} Bc8 {[%emt 0:00:07]} 39. b4 {[%emt 0:00:07]} Bb6 {[%emt 0:00:07]} 40. a4 {[%emt 0:00:10]} d4 {[%emt 0:01:03]} 41. Bd2 {[%emt 0:00:48]} Kd5 {[%emt 0:00:39]} 42. e4+ {[%emt 0:00:09]} Kd6 {[%emt 0:00:01]} 43. Kf3 {[%emt 0:00:15]} Bd8 {[%emt 0:00:14]} 44. b5 {[%emt 0:00:57]} a5 {[%emt 0:00:37]} 45. Bc4 {[%emt 0:00:18]} h5 {[%emt 0:00:43]} 46. h4 {[%emt 0:00:11]} Bg4+ {[%emt 0:00:02]} 47. Kf2 {[%emt 0:00:08]} Bd1 {[%emt 0:00:16]} 48. Bh6 {[%emt 0:00:18]} Kc5 {[%emt 0:00:24]} 49. Bf7 {[%emt 0:00:19]} Bxa4 {[%emt 0:00:06]} 50. Bf8+ {[%emt 0:00:02]} Kb6 {[%emt 0:00:12]} 51. Bxg6 {[%emt 0:00:03]} Bd1 {[%emt 0:00:03]} 52. Be8 {[%emt 0:00:07]} a4 {[%emt 0:00:19]} 53. Bb4 {[%emt 0:00:09]} Bf6 {[%emt 0:00:31]} 54. Bd6 {[%emt 0:00:21]} Bg7 {[%emt 0:00:13]} 55. Be7 {[%emt 0:00:26]} Bg4 {[%emt 0:00:03]} 56. Bd8+ {[%emt 0:00:16]} Kb7 {[%emt 0:00:15]} 57. Bc6+ {[%emt 0:00:08]} Kc8 {[%emt 0:00:02]} 58. Be7 {[%emt 0:00:30]} Bd7 {[%emt 0:00:27]} 59. Bd5 {[%emt 0:00:27]} Bxb5 {[%emt 0:00:04]} 60. Bf7 {[%emt 0:00:03]} Bd3 {[%emt 0:00:04]} 61. Bxh5 {[%emt 0:00:21]} Bxe4 {[%emt 0:00:02]} 62. Be8 {[%emt 0:00:07]} Bc2 {[%emt 0:00:04]} 63. g4 {[%emt 0:00:04]} e4 {[%emt 0:00:04]} 64. g5 {[%emt 0:00:09]} d3 {[%emt 0:00:04]} 65. Bf6 {[%emt 0:00:34]} d2 {[%emt 0:00:32]} 66. Bh5 {[%emt 0:00:10]} Bxf6 {[%emt 0:00:06]} 67. gxf6 {[%emt 0:00:02]} Kd8 {[%emt 0:00:01]} 68. Ke3 {[%emt 0:00:09]} a3 {[%emt 0:00:04]} 69. Kxd2 {[%emt 0:00:09]} a2 {[%emt 0:00:02]} 0-1